bitfinex/quotes_ETHUSD_20230404
["timestamp","ask_amount","ask_price","bid_price","bid_amount"]
[1680615642020,19.8990224,1874.3,1874.2,0.1]
[1680615642225,9.69946,1874.0,1873.9,0.1]
[1680615642527,17.96848218,1874.0,1873.9,0.1]
[1680615642753,19.91535406,1874.0,1873.9,0.1]
[1680615643267,18.78235406,1874.0,1873.9,0.1]
[1680615644566,19.92035406,1874.0,1873.8,0.1]
[1680615644866,16.31924218,1873.9,1873.8,0.1]
[1680615645030,18.61408059,1873.9,1873.8,0.1]
[1680615647393,18.61408059,1873.9,1873.0,0.102]
[1680615647394,8.803,1873.6,1873.0,0.102]
[1680615647544,9.69995,1873.0,1872.7,24.12286654]
[1680615647732,9.939,1872.8,1872.7,24.06046654]
[1680615647931,8.01407218,1872.8,1872.7,22.59896374]
[1680615648235,11.24407218,1872.8,1872.7,18.39023845]
[1680615648477,12.5936269,1872.8,1872.7,18.39023845]
[1680615648836,3.82745,1872.8,1872.7,18.39023845]
[1680615649076,3.82445,1872.8,1872.7,18.39023845]
[1680615649575,6.59047218,1872.8,1872.7,18.39023845]
[1680615649774,3.82745,1872.8,1872.7,18.39023845]
[1680615649975,6.59047218,1872.8,1872.7,18.39023845]
[1680615650283,12.9040794,1872.8,1872.7,18.39023845]
[1680615650623,14.0420794,1872.8,1872.7,18.39023845]
[1680615650773,17.0420794,1872.8,1872.7,18.39023845]
[1680615651334,25.7420794,1872.8,1872.7,17.34023845]
[1680615651539,0.17237811,1872.7,1872.6,0.108]
[1680615651776,0.17237811,1872.7,1872.6,0.1]
[1680615651777,19.43026978,1872.7,1872.6,0.1]
[1680615652078,19.43326978,1872.7,1872.6,0.1]
[1680615652250,20.28926978,1872.7,1872.6,0.1]
[1680615652446,15.83192698,1872.6,1872.3,0.1]
[1680615652669,18.56702218,1872.4,1872.3,0.1]
[1680615652866,18.95454218,1872.4,1872.3,0.1]
[1680615653048,22.18454218,1872.4,1872.3,0.1]
[1680615653364,24.88463036,1872.4,1872.2,0.1]
[1680615653564,14.031,1872.3,1872.2,0.1]
[1680615653770,17.69729218,1872.3,1872.2,0.1]
[1680615654351,17.71925184,1872.3,1872.2,0.1]
[1680615654540,20.26118584,1872.3,1872.2,0.1]
[1680615656092,20.26118584,1872.3,1871.7,0.1]
[1680615656093,14.803,1871.8,1871.7,0.1]
[1680615656266,21.76667184,1871.8,1871.7,0.1]
[1680615656461,24.17333902,1871.8,1871.7,0.1]
[1680615656647,27.17333902,1871.8,1871.7,0.1]
[1680615657282,27.17333902,1871.8,1871.3,0.01121124]
[1680615657283,14.70071,1871.4,1871.3,0.01121124]
[1680615657466,22.71469184,1871.4,1871.3,0.01121124]
[1680615657667,25.11440002,1871.4,1871.3,0.01121124]
[1680615658151,25.11440002,1871.4,1870.5,2.05321124]
[1680615658315,8.803,1871.2,1870.5,2.136]
[1680615658472,8.803,1871.0,1870.4,1.0069782]
[1680615658676,8.803,1870.8,1870.4,0.0069782]
[1680615658861,3.203,1870.6,1870.4,0.0069782]
[1680615659056,3.203,1870.6,1869.9,2.3519]
[1680615659057,13.55902218,1870.5,1869.9,0.006]
[1680615659359,13.55902218,1870.5,1869.9,0.002]
[1680615659360,5.101,1870.3,1869.9,0.002]
[1680615659558,5.101,1870.3,1869.7,3.044]
[1680615659559,5.96902218,1870.1,1869.7,3.044]
[1680615659759,3.213,1870.1,1869.7,1.0]
[1680615660003,3.21,1870.1,1869.7,1.21393]
[1680615660312,2.76602218,1870.0,1869.7,2.138]
[1680615660513,0.007,1870.0,1869.7,2.35193]
[1680615660678,0.12833,1870.1,1869.6,1.16489028]
[1680615661003,2.005,1870.3,1869.6,1.16489028]
[1680615661170,0.007,1870.3,1869.8,1.0]
[1680615661373,0.1283,1870.6,1869.8,1.0]
[1680615661589,3.203,1870.4,1869.9,2.238]
[1680615661811,0.23,1870.3,1869.9,2.238]
[1680615662010,5.96902218,1870.2,1869.7,2.14]
[1680615662213,3.203,1870.0,1869.6,1.16689028]
[1680615662381,3.203,1870.0,1869.6,1.16489028]
[1680615662910,3.203,1869.8,1869.6,0.16489028]
[1680615663414,6.19902218,1869.7,1869.6,0.16489028]
[1680615663616,6.33738218,1869.7,1869.6,0.16489028]
[1680615663767,6.20902218,1869.7,1869.6,0.16489028]
[1680615664477,6.33738218,1869.7,1869.6,0.16489028]
[1680615665310,6.20902218,1869.7,1869.6,0.16489028]
[1680615665645,7.19241036,1869.7,1869.6,0.16489028]
[1680615665811,7.06405036,1869.7,1869.6,0.16489028]
[1680615665970,10.19241036,1869.7,1869.6,0.16489028]
[1680615667468,12.18241036,1869.7,1869.6,0.16489028]
[1680615668500,9.96241036,1869.7,1869.6,0.16489028]
[1680615668872,6.34136,1869.7,1869.6,0.16489028]
[1680615669271,9.10738218,1869.7,1869.6,0.16489028]
[1680615669597,8.97902218,1869.7,1869.6,0.16489028]
[1680615669796,3.213,1869.7,1869.6,0.16489028]
[1680615669984,3.21,1869.7,1869.6,0.16489028]
[1680615670396,3.203,1869.7,1869.6,0.16489028]
[1680615670614,3.21,1869.7,1869.6,0.16489028]
[1680615670984,12.02038218,1869.7,1869.6,0.16489028]
[1680615671198,19.01438218,1869.7,1869.6,0.16489028]
[1680615671825,11.42838218,1869.7,1869.6,0.16489028]
[1680615672119,6.42838218,1869.7,1869.6,0.16489028]
[1680615672271,6.213,1869.7,1869.6,0.16489028]
[1680615672477,11.34136,1869.7,1869.6,0.16489028]
[1680615673017,6.213,1869.7,1869.6,0.16489028]
[1680615673242,3.213,1869.7,1869.6,0.16489028]
[1680615673444,3.21,1869.7,1869.6,0.16489028]
[1680615673631,3.33836,1869.7,1869.6,0.16489028]
[1680615673945,3.56836,1869.7,1869.6,0.16489028]
[1680615674249,3.33836,1869.7,1869.6,0.16489028]
[1680615674745,3.21,1869.7,1869.6,0.16489028]
[1680615675053,0.007,1869.7,1869.6,0.16489028]
[1680615675250,0.007,1870.0,1869.6,2.16289028]
[1680615675475,5.96902218,1869.9,1869.6,0.16489028]
[1680615675627,3.203,1869.7,1869.6,0.16489028]
[1680615675951,3.58808,1869.7,1869.6,0.16489028]
[1680615676450,0.01,1869.8,1869.6,0.16489028]
[1680615676607,0.38508,1869.7,1869.6,0.16489028]
[1680615677041,3.203,1869.7,1869.6,0.16489028]
[1680615677682,3.33836,1869.7,1869.6,0.16489028]
[1680615677980,0.007,1869.7,1869.6,0.16489028]
[1680615678275,0.13535,1869.8,1869.6,0.16489028]
[1680615678475,0.007,1869.8,1869.6,0.16489028]
[1680615679352,0.007,1870.0,1869.6,0.16489028]
[1680615680180,0.12835,1869.8,1869.6,0.16489028]
[1680615680383,3.33835,1869.9,1869.6,0.16489028]
[1680615680888,3.59504,1869.9,1869.6,0.16489028]
[1680615681047,0.13535,1869.9,1869.6,0.16489028]
[1680615681244,3.203,1869.9,1869.6,0.16489028]
[1680615681478,3.33835,1869.9,1869.6,0.16489028]
[1680615681985,3.33121455,1869.9,1869.6,0.16489028]
[1680615682155,0.12835,1869.9,1869.6,0.16489028]
[1680615682478,4.09929455,1869.9,1869.6,0.16489028]
[1680615682687,7.27524619,1869.9,1869.6,0.16489028]
[1680615682897,0.25195966,1869.8,1869.6,0.16489028]
[1680615683042,3.58594455,1869.7,1869.6,0.16489028]
[1680615683388,4.32618555,1869.7,1869.6,0.16489028]
[1680615684085,7.09220773,1869.7,1869.6,0.16489028]
[1680615684285,7.80762447,1869.7,1869.6,0.16489028]
[1680615684584,5.04160229,1869.7,1869.6,0.16489028]
[1680615684789,8.04160229,1869.7,1869.6,0.16489028]
[1680615685288,3.20065555,1869.7,1869.6,0.16489028]
[1680615685442,3.206,1869.9,1869.6,0.37883028]
[1680615685644,3.203,1869.9,1869.6,0.16489028]
[1680615685844,0.01,1870.1,1869.6,0.37883028]
[1680615686085,0.11627299,1870.4,1869.6,0.37883028]
[1680615686243,0.11627299,1870.4,1869.6,0.17089028]
[1680615686244,0.38496,1870.3,1869.6,0.17089028]
[1680615686439,3.203,1870.2,1869.7,1.998]
[1680615686658,3.203,1870.2,1869.8,0.5]
[1680615686856,3.33132,1870.2,1869.8,0.006]
[1680615687047,3.58797,1870.2,1869.8,0.006]
[1680615687445,6.35399218,1870.2,1869.8,0.006]
[1680615687641,6.10034218,1870.2,1869.8,0.006]
[1680615687846,7.2960404,1870.2,1869.8,0.006]
[1680615688173,0.23,1870.1,1869.8,0.006]
[1680615688426,3.203,1870.0,1869.8,0.006]
[1680615688627,3.103,1870.0,1869.6,2.38283028]
[1680615688826,3.103,1870.0,1869.6,2.81071028]
[1680615689033,3.103,1870.0,1869.6,2.16889028]
[1680615689201,3.103,1870.0,1869.7,0.21393]
[1680615689558,0.003,1870.2,1869.7,0.21393]
[1680615689723,3.103,1870.1,1869.6,2.16289028]
[1680615689927,3.103,1870.1,1869.6,2.16689028]
[1680615690364,3.103,1870.1,1869.6,2.38283028]
[1680615690522,3.23134,1870.1,1869.6,2.16889028]
[1680615690715,3.23134,1870.1,1869.6,2.38283028]
[1680615690716,3.103,1870.1,1869.6,2.38283028]
[1680615691213,3.23133,1870.1,1869.6,2.16889028]
[1680615691408,3.103,1870.1,1869.6,2.38083028]
[1680615691625,3.103,1870.1,1869.6,2.38283028]
[1680615692365,3.333,1870.0,1869.6,2.16889028]
[1680615692661,3.333,1870.0,1869.6,2.38283028]
[1680615693275,3.103,1870.0,1869.6,2.81072028]
[1680615693751,3.103,1870.0,1869.6,2.38283028]
[1680615694552,3.103,1870.0,1869.6,2.16889028]
[1680615695119,0.23,1869.9,1869.6,0.16889028]
[1680615695319,3.333,1869.9,1869.6,0.16489028]
[1680615695894,3.333,1869.9,1869.6,0.37883028]
[1680615696215,3.333,1869.9,1869.6,0.16239176]
[1680615696378,3.103,1869.8,1869.6,0.16239176]
[1680615696566,3.23135,1869.8,1869.6,0.16239176]
[1680615696762,3.603954,1869.8,1869.6,0.16239176]
[1680615697009,0.23,1869.7,1869.6,0.16239176]
[1680615697419,3.103,1869.7,1869.6,0.16239176]
[1680615698513,0.13935,1869.9,1869.6,0.16239176]
[1680615698668,3.333,1869.8,1869.6,0.16239176]
[1680615698871,5.86902218,1869.7,1869.6,0.16239176]
[1680615699073,6.10202218,1869.7,1869.6,0.16239176]
[1680615699401,12.10906184,1869.7,1869.6,0.16239176]
[1680615699618,11.72398184,1869.7,1869.6,0.16239176]
[1680615699817,13.03837602,1869.7,1869.6,0.16239176]
[1680615700131,16.30309602,1869.7,1869.6,0.16239176]
[1680615700334,16.29509602,1869.7,1869.6,0.16239176]
[1680615700828,16.04037602,1869.7,1869.6,0.16239176]
[1680615701032,0.16190824,1869.6,1869.4,0.000863]
[1680615701242,8.703,1869.4,1869.3,0.000863]
[1680615701384,13.85016218,1869.4,1869.3,0.000863]
[1680615701732,9.23040218,1869.4,1869.3,0.000863]
[1680615701895,11.17299836,1869.4,1869.3,0.000863]
[1680615702112,11.17499836,1869.4,1869.2,0.57758329]
[1680615702445,3.71817,1869.3,1869.2,0.57758329]
[1680615702650,3.46139,1869.3,1869.2,0.57758329]
[1680615703154,12.08419218,1869.3,1869.2,1.39649028]
[1680615703439,12.9366908,1869.3,1869.2,1.39649028]
[1680615703830,12.9286908,1869.3,1869.2,1.11695396]
[1680615704025,12.9366908,1869.3,1869.2,1.11695396]
[1680615704437,14.9266908,1869.3,1869.2,1.11695396]
[1680615704751,14.9266908,1869.3,1869.1,1.11695396]
[1680615704752,17.9266908,1869.3,1869.1,1.11695396]
[1680615704900,3.4882,1869.1,1869.0,0.89649028]
[1680615705250,3.4882,1869.1,1868.8,1.66255219]
[1680615705251,17.07422218,1869.1,1868.8,0.002]
[1680615705414,10.689,1868.9,1868.7,1.76255219]
[1680615705613,3.333,1868.8,1868.7,1.76255219]
[1680615705819,4.52706222,1868.8,1868.7,1.76255219]
[1680615706414,12.8930844,1868.8,1868.7,1.76255219]
[1680615706616,12.6392444,1868.8,1868.7,1.76255219]
[1680615706815,12.6392444,1868.8,1868.7,0.1]
[1680615707128,12.8960844,1868.8,1868.7,0.1]
[1680615707734,3.91480222,1868.8,1868.7,0.1]
[1680615708054,3.203,1869.6,1869.2,1.0]
[1680615708201,0.007,1869.8,1869.4,1.0]
[1680615708402,0.54505251,1870.3,1869.5,0.71395]
[1680615708605,0.54505251,1870.3,1869.5,2.72987]
[1680615708606,0.12833,1870.2,1869.5,2.72987]
[1680615708837,0.12833,1870.2,1869.5,0.59187]
[1680615708838,5.6,1870.2,1869.5,0.59187]
[1680615709054,11.357,1870.1,1869.4,2.35396]
[1680615709353,7.598,1869.6,1869.0,1.9552602]
[1680615709564,7.598,1869.6,1868.9,0.002]
[1680615709565,3.201,1869.0,1868.9,0.002]
[1680615709848,3.197,1868.9,1868.8,2.47600584]
[1680615710444,3.197,1868.9,1868.8,2.48000584]
[1680615710607,3.427,1868.9,1868.8,2.48200584]
[1680615710954,9.73194,1868.9,1868.8,2.48200584]
[1680615711252,9.73494,1868.9,1868.8,2.48200584]
[1680615711457,12.23861,1868.9,1868.8,2.48200584]
[1680615711829,10.24861,1868.9,1868.8,2.48200584]
[1680615712050,11.72894,1868.9,1868.8,2.48200584]
[1680615712216,5.194,1868.9,1868.8,2.48200584]
[1680615712555,5.96602218,1868.9,1868.8,3.04081544]
[1680615712738,3.2,1868.9,1868.8,2.48200584]
[1680615712941,3.197,1868.9,1868.8,2.48200584]
[1680615713435,6.29586318,1868.9,1868.8,2.48200584]
[1680615713644,6.42727318,1868.9,1868.8,2.48200584]
[1680615713820,6.68410318,1868.9,1868.8,2.48200584]
[1680615714452,3.918081,1868.9,1868.8,2.48200584]
[1680615714689,4.145081,1868.9,1868.8,2.48200584]
[1680615715376,3.81224,1868.9,1868.8,2.48200584]
[1680615715580,6.57826218,1868.9,1868.8,2.48200584]
[1680615715757,6.58126218,1868.9,1868.8,2.48200584]
[1680615715934,14.17426218,1868.9,1868.8,2.48200584]
[1680615716137,17.17426218,1868.9,1868.8,2.48200584]
[1680615716371,18.9430544,1868.9,1868.8,2.48200584]
[1680615716750,18.9430544,1868.9,1868.8,2.47600584]
[1680615717077,23.9430544,1868.9,1868.8,2.47600584]
[1680615717374,23.9430544,1868.9,1868.7,0.106]
[1680615717375,15.04868,1868.8,1868.7,0.1]
[1680615717575,22.55966184,1868.8,1868.7,0.1]
[1680615717785,26.07235025,1868.8,1868.7,0.1]
[1680615717936,22.27386025,1868.8,1868.7,0.1]
[1680615718571,8.797,1868.5,1868.4,0.1]
[1680615718879,17.47709184,1868.5,1868.4,0.1]
[1680615719084,19.72480102,1868.5,1868.4,0.1]
[1680615719738,24.72480102,1868.5,1868.4,0.1]
[1680615719974,19.72480102,1868.5,1868.4,0.1]
[1680615720181,7.84499884,1868.5,1868.4,0.1]
[1680615720491,8.59728966,1868.5,1868.4,0.1]
[1680615720641,11.36331184,1868.5,1868.4,0.1]
[1680615720984,11.10642184,1868.5,1868.4,0.1]
[1680615721166,11.36331184,1868.5,1868.4,0.1]
[1680615721354,11.87709184,1868.5,1868.4,0.1]
[1680615721553,19.22480102,1868.5,1868.4,0.1]
[1680615721952,19.45480102,1868.5,1868.4,0.1]
[1680615722372,16.69413102,1868.5,1868.4,0.1]
[1680615722548,10.96569102,1868.5,1868.4,0.1]
[1680615722744,7.84217136,1868.5,1868.4,0.1]
[1680615723045,3.2,1868.5,1868.4,0.1]
[1680615723249,3.197,1868.5,1868.4,0.1]
[1680615723778,3.197,1868.5,1868.4,0.31808]
[1680615724082,3.197,1868.5,1868.4,0.106]
[1680615724296,0.13142,1868.8,1868.4,0.106]
[1680615724443,0.12842,1868.9,1868.4,0.106]
[1680615724643,3.197,1868.8,1868.4,0.32008]
[1680615724894,3.197,1868.8,1868.4,4.88425]
[1680615725187,3.197,1868.8,1868.5,2.138]
[1680615725389,3.197,1868.8,1868.5,2.35807]
[1680615725588,3.197,1868.8,1868.5,3.274843]
[1680615725789,3.197,1868.8,1868.6,2.138]
[1680615725998,0.003,1869.1,1868.7,0.21405]
[1680615726289,0.003,1869.1,1868.6,0.006]
[1680615726290,6.09743218,1869.0,1868.6,0.006]
[1680615726487,3.33441,1869.0,1868.6,0.006]
[1680615726687,3.203,1869.0,1868.5,0.006]
[1680615726844,3.203,1869.0,1868.5,0.2306]
[1680615727046,3.203,1869.0,1868.6,2.138]
[1680615727252,3.203,1869.0,1868.6,2.144]
[1680615727497,6.35425218,1869.0,1868.6,2.144]
[1680615727647,3.206,1869.0,1868.6,2.144]
[1680615727955,3.203,1869.0,1868.6,0.006]
[1680615728161,3.33141,1869.0,1868.6,0.006]
[1680615728497,3.33141,1868.9,1868.6,0.006]
[1680615728699,0.1314,1869.1,1868.7,2.76602218]
[1680615728853,0.1284,1869.2,1868.7,0.006]
[1680615729150,3.203,1869.3,1868.7,5.91002218]
[1680615729550,3.203,1869.3,1868.8,2.138]
[1680615729787,3.203,1869.3,1868.8,2.144]
[1680615729788,3.203,1869.2,1868.8,2.144]
[1680615731392,0.25976,1869.4,1868.9,2.138]
[1680615731393,0.003,1869.4,1868.9,2.138]
[1680615731600,0.12839,1869.3,1868.9,2.144]
[1680615731904,3.65198,1869.4,1868.9,2.144]
[1680615732187,0.12839,1869.3,1868.9,2.144]
[1680615732388,3.203,1869.2,1868.9,2.144]
[1680615732594,3.203,1869.0,1868.9,0.006]
[1680615733089,3.203,1869.0,1868.8,0.006]
[1680615733090,3.58823,1869.0,1868.8,0.006]
[1680615733249,3.561823,1868.9,1868.7,0.006]
[1680615733464,6.35428218,1868.8,1868.7,0.006]
[1680615733667,6.35428218,1868.8,1868.4,2.242]
[1680615733668,6.58728218,1868.8,1868.5,0.006]
[1680615733902,6.58728218,1868.8,1868.4,0.106]
[1680615733903,3.203,1868.6,1868.4,0.106]
[1680615734217,3.58833,1868.5,1868.4,0.106]
[1680615734702,3.33144,1868.5,1868.4,0.106]
[1680615735796,6.09746218,1868.5,1868.4,0.106]
[1680615735998,7.10113218,1868.5,1868.4,0.1]
[1680615736197,12.18735218,1868.5,1868.4,0.1]
[1680615737163,12.18735218,1868.5,1868.0,0.23293791]
[1680615737366,0.38539,1868.2,1868.0,0.23093791]
[1680615737569,3.203,1868.1,1868.0,0.23093791]
[1680615737803,3.83844122,1868.1,1868.0,0.23093791]
[1680615738015,0.12847,1868.1,1868.0,0.23093791]
[1680615738166,0.003,1868.5,1868.0,0.78974751]
[1680615738365,0.7775,1869.0,1868.0,0.78974751]
[1680615738596,0.12842,1868.8,1868.0,3.40654331]
[1680615738797,2.77302218,1868.8,1868.0,3.99893331]
[1680615739068,3.203,1868.7,1868.3,0.21409]
[1680615739307,5.97602218,1868.7,1868.2,0.2141]
[1680615739511,3.213,1868.7,1868.3,0.21409]
[1680615739673,3.203,1868.7,1868.3,2.78228]
[1680615739887,3.203,1868.7,1868.3,0.97638896]
[1680615740105,3.203,1868.7,1868.3,3.11638896]
[1680615740419,3.203,1868.7,1868.3,0.97638896]
[1680615740619,3.203,1868.7,1868.3,3.11638896]
[1680615740942,0.007,1868.8,1868.3,3.11638896]
[1680615741115,3.21,1869.0,1868.5,0.64221]
[1680615741317,5.97602218,1869.0,1868.5,0.64221]
[1680615741614,3.213,1869.0,1868.5,0.64221]
[1680615741801,11.56902218,1868.9,1868.4,0.7728896]
[1680615741998,3.203,1868.7,1868.4,0.5588096]
[1680615742709,3.203,1868.5,1868.3,12.0522]
[1680615742913,3.5233,1868.4,1868.2,0.5668096]
[1680615743114,3.5233,1868.4,1868.2,0.5588096]
[1680615743115,3.203,1868.4,1868.2,0.5588096]
[1680615743331,3.203,1868.4,1868.1,12.39041047]
[1680615743332,3.203,1868.4,1868.1,12.1110096]
[1680615743619,3.58835,1868.4,1868.1,11.5442]
[1680615743798,3.203,1868.2,1868.1,11.5442]
[1680615744002,3.203,1868.2,1868.1,0.006]
[1680615744003,3.33146,1868.2,1868.1,0.006]
[1680615744310,3.203,1868.2,1868.0,0.73974751]
[1680615744728,3.203,1868.2,1868.0,1.57795798]
[1680615744928,0.01,1868.4,1868.1,0.5588096]
[1680615745152,0.007,1868.8,1868.2,0.5588096]
[1680615745426,0.51365,1869.0,1868.3,11.5689]
[1680615745591,0.38531,1868.6,1868.3,11.5689]
[1680615745792,3.15133218,1868.6,1868.3,11.5689]
[1680615746021,3.58835,1868.4,1868.3,11.5689]
[1680615746223,3.59535,1868.4,1868.2,0.002]
[1680615746391,3.58839,1868.2,1868.1,0.5588096]
[1680615746591,6.35441218,1868.2,1868.0,0.73974751]
[1680615746827,12.46832218,1868.1,1868.0,0.18093791]
[1680615747003,13.97811406,1868.1,1868.0,0.18093791]
[1680615747783,10.98737,1867.8,1867.6,0.5668096]
[1680615748024,9.70253,1867.6,1867.5,0.6628096]
[1680615748226,9.70253,1867.6,1867.4,0.84221047]
[1680615748227,12.47155218,1867.6,1867.4,0.5588096]
[1680615748479,12.47155218,1867.6,1866.9,0.9863356]
[1680615748480,3.203,1867.0,1866.9,0.9863356]
[1680615748629,12.46884218,1867.0,1866.9,0.428154]
[1680615748931,12.46884218,1867.0,1866.9,0.178154]
[1680615748932,3.206,1867.0,1866.9,0.178154]
[1680615749138,0.01,1867.2,1866.9,3.97734066]
[1680615749335,8.0,1868.0,1867.4,0.91178756]
[1680615749336,0.52096,1867.9,1867.4,0.91178756]
[1680615749631,1.28474,1868.1,1867.4,0.5581414]
[1680615749632,0.12847,1868.1,1867.4,0.5581414]
[1680615749797,0.08821244,1868.0,1867.4,1.3953535]
[1680615749999,0.12848,1867.9,1867.4,0.5581414]
[1680615750229,0.12848,1867.9,1867.3,1.3953535]
[1680615750536,0.08821244,1867.6,1867.3,0.5581414]
[1680615750840,0.08821244,1867.6,1867.2,13.2158535]
[1680615751131,0.08821244,1867.6,1867.2,12.3766414]
[1680615751434,0.15045966,1867.7,1867.2,12.3766414]
[1680615751727,12.01574462,1867.6,1867.2,12.3766414]
[1680615751930,0.08821244,1867.4,1867.2,12.3766414]
[1680615752096,0.08821244,1867.4,1867.2,11.8185]
[1680615752097,3.203,1867.3,1867.2,11.8185]
[1680615752322,3.21,1867.3,1867.1,0.5661414]
[1680615752634,3.203,1867.3,1867.1,0.5581414]
[1680615753030,3.80972346,1867.3,1867.1,0.5581414]
[1680615753266,3.80972346,1867.3,1867.1,0.4756114]
[1680615753443,3.203,1867.3,1867.1,0.4756114]
[1680615753834,3.203,1867.3,1866.9,1.9535753]
[1680615754033,3.203,1867.3,1866.9,3.1914621]
[1680615754237,3.203,1867.3,1867.0,0.8372121]
[1680615754452,0.08821244,1867.1,1866.9,0.8372121]
[1680615754657,0.08821244,1867.1,1866.8,12.323]
[1680615754864,3.203,1867.2,1866.8,13.1582121]
[1680615755232,3.21,1867.2,1866.8,14.58716745]
[1680615755452,0.007,1867.3,1867.2,0.91178756]
[1680615755723,3.21,1867.8,1867.2,9.13310603]
[1680615755969,3.29821244,1867.8,1867.3,1.42763872]
[1680615756171,3.21,1867.8,1867.3,3.78183872]
[1680615756465,0.003,1868.0,1867.3,3.78183872]
[1680615756466,0.08821244,1867.9,1867.5,0.21418]
[1680615756666,3.21,1868.2,1867.5,0.21418]
[1680615756866,0.08821244,1868.1,1867.6,2.14]
[1680615757072,0.09521244,1868.1,1867.7,0.21416]
[1680615757367,0.08821244,1868.1,1867.8,2.14]
[1680615757576,3.46466716,1868.5,1867.8,5.35557818]
[1680615757577,0.007,1868.4,1867.8,5.35557818]
[1680615757780,0.007,1868.4,1868.3,2.41409]
[1680615757928,0.08821244,1868.9,1868.3,0.21409]
[1680615758126,0.08821244,1868.9,1868.3,2.35409]
[1680615758477,0.08821244,1868.9,1868.4,2.14]
[1680615758651,0.08821244,1868.9,1868.4,2.35408]
[1680615759172,0.08821244,1868.9,1868.4,5.12010218]
[1680615759871,0.08821244,1868.9,1868.4,2.14]
[1680615760069,0.09521244,1868.9,1868.4,2.14]
[1680615760363,3.22495966,1868.8,1868.3,2.35408]
[1680615760568,3.23195966,1868.8,1868.3,2.35408]
[1680615760765,3.23195966,1868.8,1868.4,2.35408]
[1680615760955,3.203,1868.8,1868.4,2.35408]
[1680615761157,0.09521244,1868.9,1868.4,2.852507]
[1680615761360,0.1101721,1868.9,1868.4,2.852507]
[1680615761952,0.1101721,1868.9,1868.4,2.638427]
[1680615762129,0.1101721,1868.9,1868.4,2.14]
[1680615762474,0.1101721,1868.9,1868.2,2.142]
[1680615762686,0.1101721,1868.9,1868.3,0.21408]
[1680615763033,0.1101721,1868.9,1868.3,2.78227]
[1680615763373,0.1101721,1868.9,1868.4,0.278227]
[1680615763575,0.1101721,1868.9,1868.4,0.492297]
[1680615763780,0.1101721,1868.9,1868.4,5.82648918]
[1680615764071,0.1101721,1868.9,1868.4,3.25831918]
[1680615764581,0.08821244,1868.9,1868.4,5.39831918]
[1680615764750,0.004,1869.0,1868.5,8.1438541]
[1680615764939,0.08821244,1869.0,1868.6,0.64216]
[1680615765279,0.08821244,1869.0,1868.7,2.138]
[1680615765440,0.08821244,1869.0,1868.7,2.35205]
[1680615766033,0.08821244,1869.0,1868.7,2.78015]
[1680615766227,0.08821244,1869.0,1868.7,2.138]
[1680615766590,0.08821244,1869.0,1868.7,2.35205]
[1680615767154,0.08821244,1869.0,1868.7,0.21405]
[1680615767361,0.08821244,1869.0,1868.6,2.138]
[1680615767563,0.007,1869.1,1868.7,2.138]
[1680615767744,0.08821244,1868.8,1868.7,0.21405]
[1680615768290,0.08821244,1868.8,1868.6,2.138]
[1680615768526,0.08821244,1868.8,1868.6,2.35205]
[1680615768677,0.08821244,1868.8,1868.6,0.64217]
[1680615769000,0.08821244,1868.8,1868.6,0.21405]
[1680615769155,0.007,1868.9,1868.6,3.015575]
[1680615769358,0.09521244,1869.0,1868.6,3.015575]
[1680615769887,0.02195966,1869.1,1868.6,5.78159718]
[1680615769888,0.09521244,1869.1,1868.6,5.78159718]
[1680615770258,0.09521244,1869.1,1868.7,2.71615972]
[1680615770572,0.08821244,1869.1,1868.8,1.49825]
[1680615770772,0.08821244,1869.1,1868.8,3.63625]
[1680615770946,0.08821244,1869.1,1868.8,2.7801]
[1680615771365,0.08821244,1869.1,1868.8,5.54612218]
[1680615771600,0.08821244,1869.1,1868.8,6.24436937]
[1680615771777,0.08821244,1869.1,1868.8,18.09346937]
[1680615772366,0.08821244,1869.1,1868.8,17.66539937]
[1680615772985,0.08821244,1869.1,1868.8,18.09347937]
[1680615773482,0.435218,1869.3,1869.1,0.64486193]
[1680615773704,0.428218,1869.3,1869.2,2.76602218]
[1680615773908,0.428218,1869.3,1869.2,5.11801218]
[1680615774090,0.428218,1869.3,1869.1,2.69793034]
[1680615774273,0.428218,1869.3,1869.1,2.69593034]
[1680615774472,0.428218,1869.3,1869.1,2.14085193]
[1680615774686,0.428218,1869.3,1869.1,2.78284193]
[1680615774890,0.428218,1869.3,1869.1,0.64484193]
[1680615775263,0.428218,1869.3,1868.7,8.03033939]
[1680615775264,6.94898184,1869.2,1868.6,1.39394211]
[1680615775617,0.08821244,1868.3,1867.8,0.55748215]
[1680615775774,3.203,1868.3,1867.8,14.349]
[1680615775976,0.09121244,1868.5,1867.9,2.14]
[1680615776162,0.1101721,1868.5,1867.9,3.65266322]
[1680615776366,0.08821244,1868.4,1868.0,2.14]
[1680615777706,0.02195966,1868.5,1868.0,2.14]
[1680615777868,3.29121244,1868.6,1868.1,2.414]
[1680615777869,0.08821244,1868.6,1868.1,2.414]
[1680615778064,3.203,1868.8,1868.1,3.18560215]
[1680615778278,3.23195966,1868.8,1868.2,1.89187899]
[1680615778479,3.55515563,1868.8,1868.2,2.14]
[1680615778713,3.55515563,1868.8,1868.3,2.14]
[1680615778714,0.08821244,1868.6,1868.3,2.14]
[1680615778885,0.08821244,1868.7,1868.3,2.14]
[1680615779106,0.08821244,1868.7,1868.4,0.214]
[1680615779290,0.08821244,1868.7,1868.5,0.04]
[1680615779485,0.09521244,1868.9,1868.5,0.04]
[1680615779687,3.203,1869.0,1868.5,0.04]
[1680615779688,0.08821244,1868.7,1868.5,0.04]
[1680615780253,3.48877966,1869.0,1868.5,0.04]
[1680615780254,0.12842,1868.9,1868.5,0.04]
[1680615780381,0.08821244,1868.7,1868.5,0.04]
[1680615781547,0.08821244,1868.7,1868.2,0.55779837]